[Event "Kashem Chowdhury Rating-A 2019"]
[Site "Dhaka"]
[Date "2019.05.07"]
[Round "4.11"]
[White "Nasiruddin, Apu"]
[Black "Md. Masum Hossain"]
[Result "0-1"]
[ECO "B23"]
[WhiteElo "1882"]
[BlackElo "1995"]
[Annotator "NA RC"]
[PlyCount "105"]
[EventDate "2019.05.04"]
[EventType "swiss"]
[EventCountry "BAN"]
[SourceTitle "playchess.com"]
[Source "ChessBase"]
[SourceQuality "1"]
[TimeControl "5400+30"]

1. e4 {[%emt 1:30:30]} c5 {[%emt 1:30:30]} 2. Nc3 {[%emt 0:00:30]} e6 {[%emt 0:00:30]} 3. f4 {[%emt 0:00:30]} d5 {[%emt 0:00:30]} 4. Bb5+ {[%emt 0:00:30]} Nc6 {[%emt 0:00:30]} 5. d3 {[%emt 0:00:30]} Nge7 {[%emt 0:00:30]} 6. Nf3 {[%emt 0:00:30]} d4 {[%emt 0:00:30] B23: Closed Sicilian: Lines without g3} (6... a6 7. Bxc6+ Nxc6 8. O-O Be7 9. Ne2 O-O 10. Be3 b5 11. c3 Bb7 12. Ng3 dxe4 13. dxe4 Qxd1 14. Rfxd1 Rfd8 15. Ne1 Rxd1 16. Rxd1 {½-½ (25) Sequera Paolini,J (2413)-Venkatesh,M (2460) Lienz 2015}) 7. Bxc6+ {[%emt 0:00:30]} Nxc6 {[%emt 0:00:30]} 8. Ne2 g6 {[%emt 0:00:30]} 9. O-O {[%emt 0:01:00]} Bg7 {[%emt 0:00:30]} 10. Qe1 $146 {[%emt 0:00:30]} ({Predecessor:} 10. Ng3 h5 11. e5 Ne7 12. Ne4 Nf5 13. Nxc5 Qe7 14. Ne4 {½-½ (44) Agdestein,E (2057)-Lauda,A (2010) Istanbul 2005}) 10... O-O {[%emt 0:00:30]} 11. Kh1 {[%emt 0:00:30]} f5 {[%emt 0:00:30]} 12. Ng3 {[%emt 0:00:30]} b5 {[%emt 0:00:30]} 13. b3 {[%emt 0:00:30]} Re8 {[%emt 0:00:30]} 14. Qf2 {[%emt 0:00:30]} a5 {[%emt 0:00:30]} 15. a4 {[%emt 0:00:30]} bxa4 {[%emt 0:00:30]} 16. Rxa4 {[%emt 0:00:30]} Ba6 {[%emt 0:00:30]} 17. Ra2 {[%emt 0:00:30]} Nb4 {[%emt 0:00:30]} 18. Ra1 {[%emt 0:00:30]} Bb5 {[%emt 0:00:30]} 19. Ba3 {[%emt 0:00:30]} Qc7 {[%emt 0:00:30]} 20. e5 {[%emt 0:00:30]} Nd5 {[%emt 0:00:30]} 21. Bc1 {[%emt 0:00:30]} a4 {[%emt 0:00:30]} 22. bxa4 {[%emt 0:00:30]} Rxa4 {[%emt 0:00:30]} 23. Rxa4 {[%emt 0:00:30]} (23. Bd2 $17) 23... Bxa4 {[%emt 0:00:30]} 24. Ng5 {[%emt 0:00:30]} h6 {[%emt 0:00:30]} 25. Nh3 {[%emt 0:00:30]} Rb8 {[%emt 0:00:30]} 26. Ba3 {[%emt 0:00:30]} Qa5 {[%emt 0:00:30]} 27. c4 {[%emt 0:00:30]} Ne3 {[%emt 0:00:30]} 28. Qf3 {[%emt 0:00:30]} Nxf1 {[%emt 0:00:30]} 29. Nxf1 {[%emt 0:00:30]} Rb1 {[%emt 0:00:30]} 30. Kg1 $19 {[%emt 0:00:30]} Bc2 {[%emt 0:00:30]} 31. Qe2 {[%emt 0:00:30]} Bb3 {[%emt 0:00:30]} 32. Bxc5 {[%emt 0:00:30]} Qxc5 {[%emt 0:00:30]} 33. g4 {[%emt 0:00:30]} Qb4 {[%emt 0:00:30]} 34. gxf5 {[%emt 0:00:30]} exf5 {[%emt 0:00:30]} 35. Qg2 {[%emt 0:00:30]} Qe1 {[%emt 0:00:30]} 36. Nf2 {[%emt 0:00:30]} Kh7 {[%emt 0:00:30]} 37. h4 {[%emt 0:00:30]} Ba4 {[%emt 0:00:30]} 38. Qh3 {[%emt 0:00:30]} Bc6 {[%emt 0:00:30]} 39. h5 {[%emt 0:00:30]} Qxf1+ {[%emt 0:00:30]} 40. Qxf1 {[%emt 0:00:30]} Rxf1+ {[%emt 0:00:30]} 41. Kxf1 {[%emt 0:00:30]} g5 {[%emt 0:00:30]} 42. fxg5 {[%emt 0:00:30]} hxg5 {[%emt 0:00:30]} 43. e6 {[%emt 0:00:30]} Kh6 {[%emt 0:00:30]} 44. Nh3 {[%emt 0:00:30]} Kxh5 {[%emt 0:00:30]} 45. Kf2 {[%emt 0:00:30]} Be5 {[%emt 0:00:30]} 46. Ng1 {[%emt 0:00:30]} g4 {[%emt 0:00:30]} 47. Ne2 {[%emt 0:00:30]} f4 {[%emt 0:00:30]} 48. c5 {[%emt 0:00:30]} g3+ {[%emt 0:00:30]} 49. Kf1 {[%emt 0:00:30]} f3 {[%emt 0:00:30]} 50. Ng1 {[%emt 0:00:30]} Kg4 {[%emt 0:00:30]} 51. e7 {[%emt 0:00:30]} Bf6 {[%emt 0:00:30]} 52. Ke1 {[%emt 0:00:30]} Be5 {[%emt 0:00:30]} 53. Kd2 0-1

[Event "Kashem Chowdhury Rating-A 2019"]
[Site "Dhaka"]
[Date "2019.05.08"]
[Round "5.5"]
[White "Sumit, Kumar"]
[Black "Rahman, Syed Mahfuzur"]
[Result "1-0"]
[ECO "B51"]
[WhiteElo "2201"]
[BlackElo "2217"]
[Annotator "NA RC"]
[PlyCount "91"]
[EventDate "2019.05.04"]
[EventType "swiss"]
[EventCountry "BAN"]
[SourceTitle "playchess.com"]
[Source "ChessBase"]
[SourceQuality "1"]
[TimeControl "5400+30"]

{[%evp 9,66,18,30,15,34,32767,31,33,26,32767,32767,32767,37,8,18,0,11,0,32767,0,25,32767,-12,-14,-5,-12,-22,-27,-10,-30,-23,-13,55,-47,0,0,10,0,32767,2,4,5,14,6,32767,8,32767,0,32767,7,13,8,63,82,76,71,70,76,249]} 1. e4 {[%emt 0:00:00]} c5 {[%emt 0:00:00]} 2. Nf3 {[%emt 0:00:00]} d6 {[%emt 0:00:00]} 3. Bb5+ {[%emt 0:00:03]} Nd7 {[%emt 0:00:17]} 4. O-O {[%emt 0:00:51]} a6 {[%emt 0:04:13]} 5. Bd3 {[%emt 1:31:36]} Ngf6 {[%emt 0:02:57]} 6. c3 {[%emt 0:00:17] B51: Sicilian: Moscow Variation (3 Bb5+) without 3...Bd7} (6. Re1 e6 7. a4 b6 8. c3 Bb7 9. Qe2 Qc7 10. Na3 Be7 11. Bb1 e5 12. d4 cxd4 13. cxd4 exd4 14. Nxd4 {½-½ (42) Jakovenko,D (2719)-Ding,L (2809) Shenzhen 2019}) 6... Ne5 {[%emt 0:11:30]} 7. Nxe5 {[%emt 0:02:17]} dxe5 {[%emt 0:02:16]} 8. Bc2 {[%emt 0:03:17]} g6 {[%emt 0:02:20]} 9. d3 {[%emt 0:00:36]} Bg7 {[%emt 0:01:06]} 10. Be3 {[%emt 0:04:14]} Qc7 {[%emt 0:03:15]} 11. h3 {[%emt 0:02:32]} O-O $146 {[%emt 1:07:36]} ({Predecessor:} 11... Nh5 12. Nd2 {1-0 (78) Rjabzev,K (2270)-Makoveev,I (2041) St Petersburg 2017}) 12. Nd2 {[%emt 0:07:10]} Nh5 {[%emt 0:10:16]} 13. Nf3 {[%emt 0:05:29]} h6 {[%emt 0:10:17]} 14. Rc1 {[%emt 0:02:47]} Rd8 {[%emt 0:04:06]} 15. Qe2 {[%emt 0:06:22]} Be6 {[%emt 0:08:22]} 16. Rfd1 {[%emt 0:04:28]} Rac8 {[%emt 0:02:34]} 17. d4 {[%emt 0:26:27]} cxd4 {[%emt 0:02:00]} 18. cxd4 {[%emt 0:00:11]} exd4 {[%emt 0:01:15]} 19. Nxd4 {[%emt 0:02:49]} Bc4 {[%emt 0:04:10]} 20. Qf3 {[%emt 0:05:30]} e5 {[%emt 0:09:51]} (20... Bxd4 $1 $11 21. Rxd4 Rxd4 22. Bxd4 Bxa2) 21. Ne2 {[%emt 0:11:14]} (21. Bd3 $14 b5 22. b3) 21... Qe7 {[%emt 0:04:17]} ({Better is} 21... Bxa2 $15 22. Nc3 Be6) 22. Nc3 {[%emt 0:01:28]} Nf6 {[%emt 0:03:54]} 23. a3 {[%emt 0:02:30]} b5 {[%emt 0:00:57]} 24. Rxd8+ {[%emt 0:02:14]} Rxd8 {[%emt 0:00:04]} 25. Rd1 {[%emt 0:00:04]} Rxd1+ {[%emt 0:02:02]} 26. Qxd1 {[%emt 0:00:05]} Qd7 {[%emt 0:00:13]} 27. f3 {[%emt 0:02:20]} Bf8 {[%emt 0:01:45]} 28. Kf2 {[%emt 0:01:15]} Qxd1 {[%emt 0:00:55]} 29. Bxd1 {[%emt 0:00:01]} Nd7 {[%emt 0:00:39]} 30. Be2 {[%emt 0:00:05]} f5 {[%emt 0:01:48]} 31. Bxc4+ {[%emt 0:02:54]} bxc4 {[%emt 0:00:01]} 32. Ke2 {[%emt 0:01:38]} Kf7 {[%emt 0:01:45]} 33. Kd2 {[%emt 0:00:28]} Nb8 $18 {[%emt 0:01:42]} (33... Ke6 $16 {keeps fighting.}) 34. Nd5 {[%emt 0:00:39]} fxe4 {[%emt 0:00:25]} 35. fxe4 {[%emt 0:00:02]} Nc6 {[%emt 0:00:36]} 36. Kc3 {[%emt 0:00:25]} Na5 {[%emt 0:01:01]} 37. Nc7 {[%emt 0:00:37]} g5 {[%emt 0:00:37]} 38. Nxa6 {[%emt 0:00:19]} Ke6 {[%emt 0:00:12]} 39. Nc7+ {[%emt 0:02:01]} Kd6 {[%emt 0:00:12]} 40. Nd5 {[%emt 0:00:17]} Kc6 {[%emt 0:00:19]} 41. Bb6 {[%emt 0:01:13]} Nb3 {[%emt 0:01:10]} 42. Kxc4 {[%emt 0:00:35]} Nd2+ {[%emt 0:00:38]} 43. Kd3 {[%emt 0:00:06]} Nb3 {[%emt 0:00:12]} 44. Kc2 {[%emt 0:01:00]} Nd4+ {[%emt 0:00:30]} 45. Bxd4 {[%emt 0:00:07]} exd4 {[%emt 0:00:02]} 46. Kd3 {[%emt 0:00:06]} 1-0

[Event "Kashem Chowdhury Rating-A 2019"]
[Site "Dhaka"]
[Date "2019.05.08"]
[Round "5.6"]
[White "Islam, Mohammad Aminul"]
[Black "Ahmed, Sk. Nasir"]
[Result "1/2-1/2"]
[ECO "B10"]
[WhiteElo "2027"]
[BlackElo "2170"]
[Annotator "NA RC"]
[PlyCount "64"]
[EventDate "2019.05.04"]
[EventType "swiss"]
[EventCountry "BAN"]
[SourceTitle "playchess.com"]
[Source "ChessBase"]
[SourceQuality "1"]
[TimeControl "5400+30"]

{[%evp 8,64,2,-26,32767,-21,-22,-19,0,-24,10,-39,-43,-40,32767,-38,0,32767,0,0,0,0,0,0,27,0,0,0,0,32767,-36,32767,32767,32767,0,-199,0,0,0,0,32767,-4,0,-6,42,0,96,110,138,36,36,46,36,0,32767,0,0,0,0]} 1. e4 {[%emt 0:08:37]} c6 {[%emt 0:00:05]} 2. d3 {[%emt 0:00:28]} d5 {[%emt 0:00:13]} 3. Nd2 {[%emt 0:00:07]} e5 {[%emt 0:00:41]} 4. Ngf3 {[%emt 0:00:31]} Bd6 {[%emt 0:00:50]} 5. g3 {[%emt 0:01:50]} Nf6 {[%emt 0:00:18]} 6. Bg2 {[%emt 0:00:08]} O-O {[%emt 0:00:09]} 7. O-O {[%emt 0:00:15]} a5 {[%emt 0:05:58] B10: Caro-Kann: 2 d3 and 2 c4} (7... Re8 8. Re1 Nbd7 9. c3 h6 10. Qc2 Nf8 11. b3 Ng6 12. Bb2 Bg4 13. h3 Be6 14. Rad1 Qc7 15. Nf1 Rad8 16. Ne3 Qc8 17. Kh2 {0-1 (39) Mamedyarov,S (2799)-Grischuk,A (2772) Huaian 2017}) 8. a4 {[%emt 0:00:44]} Na6 {[%emt 0:02:46]} 9. Re1 {[%emt 0:00:35]} Re8 {[%emt 0:00:17]} 10. h3 {[%emt 0:01:10]} Qc7 {[%emt 0:12:36]} 11. c3 $146 {[%emt 0:05:31]} ({Predecessor:} 11. Nb3 dxe4 12. dxe4 Be6 13. Nbd2 Rad8 14. Bf1 Nc5 15. Qe2 h6 16. Bg2 {0-1 (40) McKerracher,D-Grant,J (2272) Glasgow 2008}) 11... b6 {[%emt 0:04:06]} 12. d4 {[%emt 0:11:31]} exd4 {[%emt 0:12:23]} 13. Nxd4 {[%emt 0:03:54]} Bd7 {[%emt 0:02:23]} 14. exd5 {[%emt 0:02:31]} Rxe1+ {[%emt 0:02:55]} 15. Qxe1 {[%emt 0:00:12]} cxd5 {[%emt 0:00:03]} 16. Nb5 {[%emt 0:06:31]} Bxb5 {[%emt 0:00:55]} 17. axb5 {[%emt 0:00:02]} Nc5 {[%emt 0:00:19]} 18. Qf1 {[%emt 0:02:20]} Re8 {[%emt 0:00:38]} 19. Nf3 {[%emt 0:01:44]} Nb3 {[%emt 0:00:41]} 20. Rb1 {[%emt 0:00:16]} Ne4 {[%emt 0:05:14]} 21. Qd3 $2 {[%emt 0:05:25] [#]} (21. Be3 $11) 21... Bc5 $2 {[%emt 0:09:05]} (21... Nxf2 $1 $19 {[%mdl 512]} 22. Kxf2 Bc5+ 23. Nd4 Bxd4+ 24. cxd4 Nxc1) 22. Be3 {[%emt 0:07:09]} Nxg3 {[%emt 0:01:05]} 23. Nd4 {[%emt 0:07:12]} Nxd4 {[%emt 0:06:11]} 24. cxd4 {[%emt 0:00:45]} Bb4 {[%emt 0:01:07]} 25. Bxd5 {[%emt 0:02:45]} Nh5 {[%emt 0:01:20]} 26. Rc1 {[%emt 0:04:37]} Qd6 {[%emt 0:00:59] [#]} (26... Qd7 $11 27. Qc4 Qf5) 27. Qf5 $1 {[%emt 0:02:06]} Nf6 {[%emt 0:03:13]} 28. Rc8 {[%emt 0:03:08]} (28. Bb3 $16) 28... Rxc8 {[%emt 0:00:35]} 29. Qxc8+ {[%emt 0:00:02]} Qf8 {[%emt 0:00:01]} 30. Qxf8+ {[%emt 0:01:44]} Kxf8 {[%emt 0:00:09]} 31. Bc6 {[%emt 0:00:54]} Ke7 {[%emt 0:02:41]} 32. Kf1 {[%emt 0:04:13]} Kd8 $11 {[%emt 0:15:20]} 1/2-1/2

[Event "Kashem Chowdhury Rating-A 2019"]
[Site "Dhaka"]
[Date "2019.05.08"]
[Round "5.8"]
[White "Md.abu, Hanif"]
[Black "Md. Jamal Uddin"]
[Result "1/2-1/2"]
[ECO "A80"]
[WhiteElo "2042"]
[BlackElo "2084"]
[Annotator "NA RC"]
[PlyCount "27"]
[EventDate "2019.05.04"]
[EventType "swiss"]
[EventCountry "BAN"]
[SourceTitle "playchess.com"]
[Source "ChessBase"]
[SourceQuality "1"]
[TimeControl "5400+30"]

{[%evp 13,27,58,56,46,68,32767,32767,77,112,130,32767,121,129,113,129,125]} 1. d4 {[%emt 1:30:30]} f5 {[%emt 0:00:50]} 2. Bf4 {[%emt 0:00:41]} Nf6 {[%emt 0:00:27]} 3. e3 {[%emt 0:00:16]} g6 {[%emt 0:00:43]} 4. h3 {[%emt 0:00:26]} Bg7 {[%emt 0:00:20]} 5. Nf3 {[%emt 0:00:09]} O-O {[%emt 0:01:35]} 6. Nbd2 {[%emt 0:00:24]} c6 {[%emt 1:29:05]} 7. Be2 {[%emt 0:00:32]} d6 {[%emt 0:02:09]} 8. O-O {[%emt 0:00:27]} Qe8 {[%emt 0:00:51]} 9. c3 {[%emt 0:01:11]} h6 {[%emt 0:03:04]} 10. Bh2 {[%emt 0:00:26]} Ne4 {[%emt 0:02:14]} 11. Nxe4 {[%emt 0:00:19]} fxe4 {[%emt 0:00:05]} 12. Nd2 {[%emt 0:00:05]} d5 {[%emt 0:00:41]} 13. f3 {[%emt 0:00:24]} exf3 $16 {[%emt 0:00:28]} 14. Nxf3 {[%emt 0:00:13]} 1/2-1/2

[Event "Kashem Chowdhury Rating-A 2019"]
[Site "Dhaka"]
[Date "2019.05.08"]
[Round "5.9"]
[White "Avik, Sarker"]
[Black "Abdul, Momin"]
[Result "1/2-1/2"]
[ECO "D02"]
[WhiteElo "2000"]
[BlackElo "2037"]
[Annotator "NA RC"]
[PlyCount "122"]
[EventDate "2019.05.04"]
[EventType "swiss"]
[EventCountry "BAN"]
[SourceTitle "playchess.com"]
[Source "ChessBase"]
[SourceQuality "1"]
[TimeControl "5400+30"]

{[%evp 8,75,12,0,13,12,15,-1,11,10,36,32767,32767,7,18,-4,32767,-27,-35,-66,-45,-59,32767,-122,-115,-233,-237,-370,-376,-513,-414,-756,-221,-220,-75,-112,-88,-117,-49,-194,-183,-163,-168,-358,-358,-462,-483,-457,-495,-637,-347,-530,-638,-656,-531,-513,-535,-567,-224,-222,-235,-257,-118,-226,-92,-105,32767,-279,-354,-293]} 1. d4 {[%emt 0:01:25]} d5 {[%emt 0:14:20]} 2. Bf4 {[%emt 0:00:19]} e6 {[%emt 0:00:12]} 3. e3 {[%emt 0:00:13]} Nf6 {[%emt 0:00:29]} 4. Nd2 {[%emt 0:00:47]} c5 {[%emt 0:01:03]} 5. c3 {[%emt 0:00:02]} Nbd7 {[%emt 0:01:51]} 6. Bd3 {[%emt 0:00:45]} Be7 {[%emt 0:01:02]} 7. Ngf3 {[%emt 0:00:42]} b6 {[%emt 0:01:05]} 8. Ne5 {[%emt 0:02:21]} Nxe5 {[%emt 0:00:36] D02: 1 d4 d5 2 Nf3 sidelines, including 2...Nf6 3 g3 and 2...Nf6 3 Bf4} 9. Bxe5 {[%emt 0:03:13]} (9. dxe5 Nd7 10. Bg3 Bb7 11. f4 d4 12. Be4 Bxe4 13. Nxe4 dxe3 14. Qe2 Qc7 15. Qxe3 Qc6 {0-1 (59) Hoang,T (2410)-Buksa,N (2385) Riadh 2017}) 9... O-O {[%emt 0:00:39]} 10. Qf3 {[%emt 0:09:58]} a5 $146 {[%emt 0:04:36]} ({Predecessor:} 10... cxd4 11. exd4 Bd6 12. Qh3 h6 13. f4 Bb7 14. O-O {½-½ (36) Ereza Vizcarra,F (2054)-San Lazaro Lorente,D (1846) Aragon 2018}) 11. Qh3 {[%emt 0:05:49]} Ba6 {[%emt 0:04:53]} 12. Bc2 {[%emt 0:04:24]} g6 {[%emt 0:04:17]} 13. Qh6 {[%emt 0:07:34]} Re8 {[%emt 0:12:29]} 14. g4 {[%emt 0:09:15]} Bf8 {[%emt 0:49:28]} 15. Qf4 {[%emt 0:06:54]} (15. Qh4 $15 Nd7 16. Qxd8 Raxd8 17. Nf3) 15... Nd7 {[%emt 0:02:04]} 16. Bc7 {[%emt 0:07:39] [#]} (16. g5 $17 {was called for.}) 16... Qe7 $1 {[%emt 0:00:56]} 17. g5 {[%emt 0:37:10] [#]} (17. O-O-O {might work better.}) 17... cxd4 $1 {[%emt 0:00:52]} 18. cxd4 {[%emt 0:08:53]} Rac8 {[%emt 0:03:47]} 19. Ba4 {[%emt 0:02:14]} (19. Bb3 $142 Qb4 20. a4) 19... b5 $2 {[%emt 0:02:07]} (19... e5 20. Bxe5 Qb4) 20. Bd1 {[%emt 0:26:54]} Qb4 $2 {[%emt 0:08:25]} (20... Nc5 $19 21. dxc5 Rxc7) 21. Rb1 {[%emt 0:02:18] [#]} e5 $1 {[%emt 0:03:33]} 22. Bxe5 {[%emt 0:00:55]} a4 {[%emt 0:01:41]} 23. a3 {[%emt 0:02:15] [#]} (23. Bc7 $17) 23... Nxe5 $3 {[%emt 0:02:28]} 24. dxe5 {[%emt 0:02:39] [#]} Qa5 $1 {[%emt 0:00:28]} 25. e4 $2 {[%emt 0:05:40]} (25. h4) 25... Bg7 {[%emt 0:04:54]} 26. O-O {[%emt 0:01:33]} Bxe5 {[%emt 0:00:15]} 27. Qe3 {[%emt 0:00:41]} d4 {[%emt 0:21:31]} 28. Qe1 {[%emt 0:01:29]} (28. Qd3 $142 Bf4 {[%mdl 64] Double Attack} 29. Nf3) 28... b4 {[%emt 0:02:03]} 29. f4 {[%emt 0:13:52]} (29. axb4 {was called for.} Qxb4 30. Nf3) 29... Bxf1 {[%emt 0:00:34]} 30. Qxf1 {[%emt 0:00:09]} Bb8 {[%emt 0:01:12]} 31. e5 {[%emt 0:01:59]} bxa3 {[%emt 0:00:33]} 32. Ne4 {[%emt 0:00:34]} h5 {[%emt 0:06:07]} (32... a2 $142 33. Nf6+ Kf8) 33. Nf6+ {[%emt 0:03:51] [#]} Kf8 $1 {[%emt 0:01:07]} 34. Nxe8 {[%emt 0:00:30] [#]} a2 {[%emt 0:01:41]} (34... axb2 $1 $19 35. Rxb2 a3) 35. Ra1 {[%emt 0:00:21]} Rxe8 {[%emt 0:02:36]} (35... Kxe8 $19 {and Black stays clearly on top.} 36. Rxa2 Qd2) 36. Rxa2 {[%emt 0:00:26] [#]} Qd2 {[%emt 0:09:44]} ({Better is} 36... d3 $1 $17 {[%mdl 512]} 37. Rxa4 (37. Qxd3 Rd8) 37... Ba7+ 38. Kh1 Qb6) 37. Bxa4 $2 {[%emt 0:02:27]} (37. Ra1 $15) 37... Rc8 {[%emt 0:00:20]} 38. Ra1 {[%emt 0:00:28]} Qxb2 {[%emt 0:00:52]} 39. Rb1 {[%emt 0:01:31]} Qa3 {[%emt 0:09:39]} 40. Bb3 {[%emt 0:02:19]} Ba7 {[%emt 0:00:32]} 41. Kg2 {[%emt 0:01:08]} h4 {[%emt 0:01:18]} 42. e6 {[%emt 0:01:06]} fxe6 {[%emt 0:00:31]} 43. Bxe6 {[%emt 0:00:22]} Rc2+ {[%emt 0:00:11]} 44. Kh1 {[%emt 0:00:19]} Qd6 {[%emt 0:00:41]} 45. Bh3 {[%emt 0:00:47]} d3 {[%emt 0:00:23]} 46. Qf3 {[%emt 0:00:31]} Qc6 {[%emt 0:01:19]} 47. Qxc6 {[%emt 0:00:24]} Rxc6 {[%emt 0:00:01]} 48. Rd1 {[%emt 0:00:20]} Rc3 {[%emt 0:00:42]} 49. Bf1 {[%emt 0:00:27]} Be3 {[%emt 0:00:17]} 50. Rxd3 {[%emt 0:00:30]} Rc1 {[%emt 0:00:52]} 51. Rxe3 {[%emt 0:00:24]} Rxf1+ {[%emt 0:00:02]} 52. Kg2 {[%emt 0:00:08]} Rxf4 {[%emt 0:00:56]} 53. Rf3 {[%emt 0:00:15]} h3+ {[%emt 0:01:30]} 54. Kg3 {[%emt 0:00:16]} Rxf3+ {[%emt 0:01:20]} 55. Kxf3 {[%emt 0:00:05]} Ke7 {[%emt 0:00:21]} 56. Kg4 {[%emt 0:01:27]} Ke6 {[%emt 0:00:21]} 57. Kf4 {[%emt 0:00:53]} Kd5 {[%emt 0:00:16]} 58. Kg4 {[%emt 0:00:17]} Ke4 {[%emt 0:00:17]} 59. Kxh3 {[%emt 0:00:14]} Kf4 {[%emt 0:00:43]} 60. Kh4 {[%emt 0:00:12]} Kf5 {[%emt 0:00:02]} 61. h3 {[%emt 0:01:06]} Kf4 {[%emt 0:07:18]} 1/2-1/2

[Event "Kashem Chowdhury Rating-A 2019"]
[Site "Dhaka"]
[Date "2019.05.09"]
[Round "6.1"]
[White "Mohammad Fahad, Rahman"]
[Black "Hossain, Enamul"]
[Result "0-1"]
[ECO "B96"]
[WhiteElo "2322"]
[BlackElo "2442"]
[Annotator "ChessBase"]
[PlyCount "66"]
[EventDate "2019.05.04"]
[EventType "swiss"]
[EventCountry "BAN"]
[SourceTitle "playchess.com"]
[Source "ChessBase"]
[SourceQuality "1"]
[TimeControl "5400+30"]

1. e4 {[%emt 0:00:00]} c5 {[%emt 0:27:11]} 2. Nf3 {[%emt 0:00:00]} d6 {[%emt 0:00:27]} 3. d4 {[%emt 0:00:10]} cxd4 {[%emt 0:00:07]} 4. Nxd4 {[%emt 0:00:05]} Nf6 {[%emt 0:00:07]} 5. Nc3 {[%emt 0:00:09]} a6 {[%emt 0:00:20]} 6. Bg5 {[%emt 0:03:01]} e6 {[%emt 0:00:13]} 7. f4 {[%emt 0:00:26]} Qc7 {[%emt 0:00:19]} 8. Bd3 {[%emt 0:06:05]} Bd7 {[%emt 0:11:01]} 9. Qe2 {[%emt 0:01:06]} Nc6 {[%emt 0:05:44]} 10. Nxc6 {[%emt 0:04:06]} Bxc6 {[%emt 0:01:40]} 11. O-O-O {[%emt 0:01:16]} Be7 {[%emt 0:01:30]} 12. Kb1 {[%emt 0:19:58]} h6 {[%emt 0:09:31]} 13. Bxf6 {[%emt 0:04:22]} Bxf6 {[%emt 0:00:59]} 14. Nd5 {[%emt 0:01:02]} exd5 {[%emt 0:05:47]} 15. exd5+ {[%emt 0:00:04]} Kf8 {[%emt 0:00:28]} 16. dxc6 {[%emt 0:00:28]} bxc6 {[%emt 0:00:01]} 17. c4 {[%emt 0:04:13]} Re8 {[%emt 0:04:00]} 18. Qf2 {[%emt 0:10:36]} Qa5 {[%emt 0:01:12]} 19. f5 {[%emt 0:05:01]} Kg8 {[%emt 0:04:38]} 20. h4 {[%emt 0:04:57]} h5 {[%emt 0:03:27]} 21. Rhe1 {[%emt 0:07:25]} Kh7 {[%emt 0:01:25]} 22. Be4 {[%emt 0:00:39]} Qb4 {[%emt 0:02:12]} 23. a3 {[%emt 0:19:20]} Qxc4 {[%emt 0:02:25]} 24. Qf3 {[%emt 0:00:09]} Rb8 {[%emt 0:02:21]} 25. Re2 {[%emt 0:00:32]} d5 {[%emt 0:03:32]} 26. Bd3 {[%emt 0:00:06]} Qa4 {[%emt 0:02:14]} 27. Rde1 {[%emt 0:03:03]} Rhd8 {[%emt 0:00:28]} 28. Qxh5+ {[%emt 0:00:12]} Kg8 {[%emt 0:00:02]} 29. Qf3 {[%emt 0:02:23]} c5 {[%emt 0:03:01]} 30. g4 {[%emt 0:02:43]} c4 {[%emt 0:01:14]} 31. g5 {[%emt 0:00:07]} Bxb2 {[%emt 0:01:39]} 32. Rxb2 {[%emt 0:01:24]} Rxb2+ {[%emt 0:00:03]} 33. Kxb2 {[%emt 0:00:06]} Qb3+ {[%emt 0:00:20]} 0-1